[Event "Austrian Championship 2022"]
[Site "Vienna"]
[Date "2022.08.18"]
[Round "8.7"]
[White "Kristoferitsch, Daniel"]
[Black "Sadilek, Peter"]
[Result "1-0"]
[ECO "E71"]
[WhiteElo "2312"]
[BlackElo "2330"]
[Annotator "TA"]
[PlyCount "145"]
[EventDate "2022.08.12"]
[EventType "swiss"]
[EventCountry "AUT"]
[SourceTitle "playchess.com"]
[Source "ChessBase"]
[SourceQuality "1"]
[TimeControl "40/5400+30:1800+30"]

{[%evp 13,145,43,54,47,50,58,62,59,89,68,88,73,88,78,112,97,111,111,120,102,91,84,133,92,101,77,88,96,95,83,79,67,97,96,106,36,43,42,59,20,23,38,40,0,0,0,0,-81,-7,-156,-154,-152,-47,-47,-47,-47,-48,-128,-51,-40,-50,-48,-38,-45,-11,-10,0,-22,-22,-22,0,0,0,0,0,-101,8,8,8,8,29959,5600,29983,29984,29987,29980,29980,29969,29975,29962,29982,29980,29987,29983,29984,29985,29985,29983,29984,29985,29985,29983,29990,29984,29984,29985,29985,29983,29983,29984,29984,29982,29982,0,29982,0,29982,29983,29983,29984,29984,29985,29991,4133,489,8,29980,29981,29981,29981,29997,8,29988,29989]} 1. d4 {[%emt 0:00:03]} Nf6 {[%emt 0:07:52]} 2. c4 {[%emt 0:00:11]} g6 {[%emt 0:00:59]} 3. Nc3 {[%emt 0:00:09]} c5 {[%emt 0:00:36]} 4. d5 {[%emt 0:00:10]} Bg7 {[%emt 0:00:15]} 5. e4 {[%emt 0:00:13]} O-O {[%emt 0:00:17]} 6. Bd3 {[%emt 0:10:43]} d6 {[%emt 0:00:37]} 7. h3 {[%emt 0:00:05]} a6 {[%emt 0:02:38][%cal Ob7b5]} 8. a4 {[%emt 0:01:52] Prevents b5. E71: King's Indian: 4 e4 d6 5 h3.} e6 {[%emt 0:01:31]} 9. Nf3 {[%emt 0:00:07]} Nbd7 {[%emt 0:02:27]} 10. O-O {[%emt 0:00:15] White is slightly better.} e5 {[%emt 0:00:16] [#]} 11. Ne1 $146 {[%emt 0:10:47]} ({Predecessor:} 11. Bg5 h6 12. Be3 Nh7 13. Qd2 f5 14. Bxh6 f4 15. Bxg7 Kxg7 16. Nh2 Ndf6 17. Be2 Rh8 18. f3 Ng5 19. Ng4 Nxh3+ 20. gxh3 Rxh3 21. Rf2 Nxg4 22. fxg4 Qh4 {0-1 (22) Giri,A (2782)-Aronian,L (2767) Chess.com INT 2018}) 11... Nh5 {[%emt 0:06:16]} 12. g3 {[%emt 0:00:46]} Ndf6 {[%emt 0:05:39]} 13. Kg2 {[%emt 0:05:43]} (13. g4 Nf4 14. Bxf4 exf4 $15) 13... Bd7 {[%emt 0:24:56]} 14. Be2 {[%emt 0:19:14]} Qc8 {[%emt 0:07:24]} 15. Rh1 {[%emt 0:00:16]} Ne8 {[%emt 0:02:57]} 16. Bxh5 {[%emt 0:01:16]} gxh5 {[%emt 0:00:03]} 17. Qxh5 {[%emt 0:00:20]} f5 {[%emt 0:00:15] Prevents g4.} (17... b5 $142) 18. a5 {[%emt 0:15:29] White is more active.} Nf6 {[%emt 0:04:53][%csl LRe4,LRh5]} 19. Qe2 {[%emt 0:00:07]} Nxe4 {[%emt 0:01:49]} 20. Nxe4 {[%emt 0:00:45]} fxe4 {[%emt 0:00:04]} 21. Qxe4 {[%emt 0:00:16]} Bf5 {[%emt 0:04:11]} 22. Qe2 {[%emt 0:00:06]} b5 {[%emt 0:07:03]} 23. axb6 {[%emt 0:01:04]} (23. cxb5 $6 axb5 24. g4 Bg6 $11) 23... Rb8 {[%emt 0:00:06]} 24. Bd2 {[%emt 0:01:27]} (24. Nf3 $16) 24... Rxb6 $14 {[%emt 0:02:24]} 25. Bc3 {[%emt 0:00:08]} Qb7 {[%emt 0:03:20]} 26. Nd3 {[%emt 0:07:04]} Qf7 {[%emt 0:03:19] White must now prevent ...Bxd3.} 27. Rhf1 {[%emt 0:04:01]} Qg6 {[%emt 0:03:39]} 28. Rad1 {[%emt 0:00:06]} Rb7 {[%emt 0:02:55]} 29. f3 {[%emt 0:03:16]} Rbf7 {[%emt 0:02:07]} 30. Nf2 {[%emt 0:00:29]} (30. Kh2 $11 {keeps the balance.}) 30... Bc2 $17 {[%emt 0:03:36]} 31. Rc1 {[%emt 0:10:24] [#]} (31. Ne4 $11 {was the only way to keep the balance.} Bxd1 32. Qxd1) 31... Rxf3 $1 {[%emt 0:00:05]} 32. g4 {[%emt 0:01:02] [#]} Bb3 {[%emt 0:01:06]} (32... Qh6 $1 $17 33. Rxc2 Qf4) 33. Ne4 $15 {[%emt 0:00:40]} R3f4 {[%emt 0:00:43]} 34. Rce1 {[%emt 0:00:09]} h5 $1 {[%emt 0:00:31][%cal Rh5g4]} 35. Bd2 {[%emt 0:01:02] [#]} (35. Rxf4 $15 Rxf4 36. Bd2 (36. g5 Bd1 $15)) 35... Rxf1 {[%emt 0:00:11]} (35... hxg4 $6 36. Bxf4 gxh3+ 37. Kxh3 exf4 38. Qg4 Qxg4+ 39. Kxg4 Bxc4 40. Rxf4 Bxd5 41. Nxd6 Rxf4+ 42. Kxf4 Bxb2 43. Re8+ Kg7 44. Rd8 $11) (35... Bxc4 36. Qxc4 Rxg4+ 37. Kh2 (37. hxg4 Qxg4+ 38. Kh2 Qh4+ 39. Kg2 Qg4+ 40. Kh2 Qh4+ 41. Kg2 Qg4+ $11) 37... Rxf1 38. hxg4 $16) (35... Bd1 $1 $17 {[%cal Rd1e2][%mdl 512]} 36. Qxd1 (36. Rxd1 $2 Rxe4 37. Rxf8+ Bxf8 $19) 36... Rxf1 37. Rxf1 Qxe4+ 38. Kh2 Rxf1 39. Qxf1 hxg4 40. hxg4 Qxg4) 36. Rxf1 {[%emt 0:00:02]} Rxf1 {[%emt 0:00:37]} 37. Kxf1 {[%emt 0:00:06]} hxg4 {[%emt 0:00:31]} 38. hxg4 {[%emt 0:00:08]} Bc2 {[%emt 0:00:41]} (38... Bd1 $5 39. Qxd1 Qxe4 $17) 39. Nf2 {[%emt 0:00:07]} e4 {[%emt 0:00:32]} 40. b4 {[%emt 0:07:01]} Bd4 {[%emt 0:00:25] ...cxb4 is the strong threat.} 41. bxc5 {[%emt 0:08:54]} dxc5 {[%emt 0:17:11][%cal Oa6a5]} 42. Be3 {[%emt 0:07:07] Hoping for Bxd4.} Bd3 {[%emt 0:07:05]} 43. Nxd3 {[%emt 0:00:08]} exd3 $11 {[%emt 0:00:02][%mdl 4096] Endgame KQB-KQB} 44. Qf3 {[%emt 0:03:06]} (44. Qd2 $11) 44... Qb6 {[%emt 0:00:48]} (44... a5 $1 $17 {aiming for ...Bxe3.} 45. Bxd4 cxd4) 45. Bxd4 {[%emt 0:03:37] Threatens to win with Be5.} Qb1+ {[%emt 0:00:04]} 46. Kg2 {[%emt 0:00:19][%cal Od5d6] Intending d6! and mate.} Qc2+ $2 {[%emt 0:03:46][%mdl 8192]} (46... d2 $2 47. d6 $1 cxd4 48. d7 $18) (46... cxd4 $11 47. d6 Qb2+ 48. Kh3 Qe2 49. Qxe2 dxe2) 47. Kg3 {[%emt 0:01:51][%cal Od5d6] d6! would kill now.} ({Worse is} 47. Bf2 d2 48. Qe3 d1=Q $11) 47... d2 {[%emt 0:01:32] [#]} 48. d6 $1 {[%emt 0:10:40]} Qg6 {[%emt 0:03:16]} (48... Qxc4 49. Qa8+) 49. Bxc5 {[%emt 0:01:11]} Qe6 {[%emt 0:00:18]} 50. Kg2 {[%emt 0:00:33]} a5 {[%emt 0:01:03]} 51. Ba3 {[%emt 0:00:49]} a4 {[%emt 0:00:29]} 52. Bb4 {[%emt 0:00:20]} Qxc4 {[%emt 0:00:30]} 53. Bxd2 {[%emt 0:00:43]} Qd4 {[%emt 0:00:14]} 54. Bf4 {[%emt 0:00:24]} a3 {[%emt 0:00:12]} 55. Kg3 {[%emt 0:00:34]} Qg1+ {[%emt 0:00:44]} 56. Kh4 {[%emt 0:00:05]} Qd4 {[%emt 0:00:32]} 57. Qa8+ {[%emt 0:00:44]} Kh7 {[%emt 0:00:13]} 58. Qb7+ {[%emt 0:00:07]} Kg6 {[%emt 0:00:12]} 59. Qb1+ {[%emt 0:00:18]} Kg7 {[%emt 0:00:01]} 60. Bg3 {[%emt 0:00:40]} Qf6+ {[%emt 0:01:16]} 61. g5 {[%emt 0:00:22]} Qe6 {[%emt 0:00:27]} 62. Qb7+ {[%emt 0:00:28]} Kg6 {[%emt 0:00:13]} 63. Qb1+ {[%emt 0:00:02]} Kg7 {[%emt 0:00:06]} 64. Qb7+ {[%emt 0:01:22]} Kg6 {[%emt 0:00:11]} 65. Qe7 {[%emt 0:00:08]} Qc4+ {[%emt 0:00:30]} 66. Kh3 {[%emt 0:00:06]} Qf1+ {[%emt 0:00:19]} 67. Kh2 {[%emt 0:00:04]} Qf5 {[%emt 0:01:27]} 68. Qe5 {[%emt 0:00:44]} (68. d7 $142 Qc2+ 69. Kh3 Qf5+ 70. Kh4 Qd5 71. Qf6+ Kh7 72. g6+ Kg8 73. d8=Q+ Qxd8 74. Qxd8+ Kg7 75. Kh5 a2 76. Be5#) 68... a2 $18 {[%emt 0:00:29] [#]} 69. Qb2 $2 {[%emt 0:00:50]} (69. Qe8+ $1 $18 Kh7 70. Qa4) 69... Qb1 $2 {[%emt 0:01:03][%mdl 8192]} (69... a1=R $11) 70. Qf6+ {[%emt 0:01:00]} Kh5 {[%emt 0:00:09]} 71. Kh3 {[%emt 0:00:28][%csl Gg5][%cal Rf6h6]} Qg6 {[%emt 0:01:17]} 72. Qxg6+ {[%emt 0:00:39]} ({Weaker is} 72. d7 Qxf6 73. gxf6 a1=Q $11) 72... Kxg6 {[%emt 0:00:03]} 73. Be5 {[%emt 0:00:06] Quite a comeback for White.  Weighted Error Value: White=0.22 (precise) /Black=0.37} ({Inferior is} 73. d7 a1=Q 74. d8=Q Qf1+ 75. Kh2 Qe2+ 76. Kh3 Qf1+ 77. Kh4 Qc4+ 78. Kh3 Qf1+ $11) 1-0

[Event "Austrian Championship 2022"]
[Site "Vienna"]
[Date "2022.08.18"]
[Round "8.7"]
[White "Kordzadze, Nino"]
[Black "Kersten, Julian"]
[Result "0-1"]
[ECO "A24"]
[WhiteElo "2043"]
[BlackElo "1999"]
[Annotator "NA RC"]
[PlyCount "102"]
[EventDate "2022.08.12"]
[EventType "swiss"]
[EventCountry "AUT"]
[SourceTitle "playchess.com"]
[Source "ChessBase"]
[SourceQuality "1"]
[TimeControl "40/5400+30:1800+30"]

1. c4 {[%emt 0:00:05]} g6 {[%emt 0:01:10]} 2. g3 {[%emt 0:00:22]} Bg7 {[%emt 0:00:20]} 3. Bg2 {[%emt 0:00:14]} Nf6 {[%emt 0:00:08]} 4. Nc3 {[%emt 0:00:13]} O-O {[%emt 0:00:08]} 5. d3 {[%emt 0:00:24]} d6 {[%emt 0:00:17]} 6. Rb1 {[%emt 0:00:44]} e5 {[%emt 0:00:19]} 7. b4 {[%emt 0:00:55]} Re8 {[%emt 0:00:55]} 8. Bd2 {[%emt 0:05:12]} a5 {[%emt 0:03:52]} 9. a3 {[%emt 0:09:27]} axb4 {[%emt 0:00:17]} 10. axb4 {[%emt 0:00:34]} c6 {[%emt 0:04:14]} 11. e4 {[%emt 0:11:55]} d5 {[%emt 0:29:06]} 12. cxd5 {[%emt 0:11:31]} cxd5 {[%emt 0:00:33]} 13. Bg5 {[%emt 0:00:57]} d4 {[%emt 0:07:04]} 14. Nd5 {[%emt 0:01:40]} Be6 {[%emt 0:01:24]} 15. Ne2 {[%emt 0:02:13]} Bxd5 {[%emt 0:02:21]} 16. exd5 {[%emt 0:00:07]} Qd6 {[%emt 0:01:02]} 17. Bxf6 {[%emt 0:00:37]} Bxf6 {[%emt 0:00:11]} 18. O-O {[%emt 0:00:29]} Na6 {[%emt 0:04:18]} 19. f4 {[%emt 0:06:53]} Nc7 {[%emt 0:07:07]} 20. fxe5 {[%emt 0:03:28]} Bxe5 {[%emt 0:01:14]} 21. Qb3 {[%emt 0:39:06]} Bg7 {[%emt 0:05:48]} 22. Nf4 {[%emt 0:00:48]} Nb5 {[%emt 0:01:37]} 23. Qc4 {[%emt 0:00:50]} Na3 {[%emt 0:00:39]} 24. Qc5 {[%emt 0:00:08]} Qxc5 {[%emt 0:03:13]} 25. bxc5 {[%emt 0:00:04]} Nxb1 {[%emt 0:00:10]} 26. Rxb1 {[%emt 0:00:04]} Ra5 {[%emt 0:04:34]} 27. d6 {[%emt 0:01:27]} Rxc5 {[%emt 0:00:56]} 28. d7 {[%emt 0:00:38]} Rd8 {[%emt 0:00:57]} 29. Rxb7 {[%emt 0:00:10]} Kf8 {[%emt 0:04:25]} 30. Nd5 {[%emt 0:00:20]} Bh6 {[%emt 0:02:47]} 31. Nb4 {[%emt 0:01:07]} Rc1+ {[%emt 0:03:28]} 32. Kf2 {[%emt 0:00:04]} Rb1 {[%emt 0:00:32]} 33. Nc6 {[%emt 0:03:30]} Rxb7 {[%emt 0:00:29]} 34. Nxd8 {[%emt 0:00:04]} Rxd7 {[%emt 0:00:29]} 35. Nc6 {[%emt 0:00:06]} Be3+ {[%emt 0:03:20]} 36. Kf3 {[%emt 0:01:08]} f5 {[%emt 0:02:34]} 37. h3 {[%emt 0:00:11]} Rb7 {[%emt 0:00:53]} 38. Bf1 {[%emt 0:00:11]} Rb1 {[%emt 0:01:37]} 39. Be2 {[%emt 0:00:12]} Rh1 {[%emt 0:00:18]} 40. Kg2 {[%emt 0:00:47]} Rg1+ {[%emt 0:02:48]} 41. Kh2 {[%emt 0:04:41]} Rc1 {[%emt 0:01:56]} 42. Bf3 {[%emt 0:02:28]} Rc2+ {[%emt 0:03:39]} 43. Kh1 {[%emt 0:00:43]} Rc3 {[%emt 0:00:25]} 44. Ne5 {[%emt 0:00:52]} Ke7 {[%emt 0:03:02]} 45. Be2 {[%emt 0:01:11]} Rc2 {[%emt 0:01:06]} 46. Bf1 {[%emt 0:02:20]} Kd6 {[%emt 0:04:03]} 47. Nc4+ {[%emt 0:00:16]} Kc5 {[%emt 0:00:19]} 48. Ne5 {[%emt 0:01:51]} Kb4 {[%emt 0:00:44]} 49. g4 {[%emt 0:00:24]} fxg4 {[%emt 0:02:31]} 50. hxg4 {[%emt 0:00:21]} Kc3 {[%emt 0:00:32]} 51. Nf3 {[%emt 0:01:45]} Rf2 {[%emt 0:00:46]} 0-1

[Event "Austrian Championship 2022"]
[Site "Vienna"]
[Date "2022.08.18"]
[Round "8.8"]
[White "Sadilek, Maximilian"]
[Black "Shengelia, David"]
[Result "0-1"]
[ECO "B89"]
[WhiteElo "2230"]
[BlackElo "2462"]
[Annotator "TA"]
[PlyCount "84"]
[EventDate "2022.08.12"]
[EventType "swiss"]
[EventCountry "AUT"]
[SourceTitle "playchess.com"]
[Source "ChessBase"]
[SourceQuality "1"]
[TimeControl "40/5400+30:1800+30"]

{[%evp 22,84,-1,-33,-26,-37,-33,-31,0,0,0,0,0,-17,8,7,14,-2,30,0,14,16,25,31,27,0,0,0,80,30,72,0,0,-113,-117,-117,-117,-117,-117,-123,-82,-115,-76,-76,-76,-71,-76,-1051,-1014,-29985,-29986,-29994,-29991,-29994,-29995,-29995,-29996,-29996,-29995,-29995,-29996,-29996,-29997,-29997,-29998]} 1. e4 {[%emt 0:00:32]} c5 {[%emt 0:00:25]} 2. Nf3 {[%emt 0:00:21]} Nc6 {[%emt 0:00:36]} 3. Nc3 {[%emt 0:00:28]} d6 {[%emt 0:03:29]} 4. d4 {[%emt 0:00:29]} cxd4 {[%emt 0:00:06]} 5. Nxd4 {[%emt 0:00:04]} Nf6 {[%emt 0:02:41]} 6. Bc4 {[%emt 0:02:09]} e6 {[%emt 0:01:15]} 7. Be3 {[%emt 0:00:17]} a6 {[%emt 0:00:24]} 8. Qe2 {[%emt 0:02:23]} Qc7 {[%emt 0:02:54]} 9. Bb3 {[%emt 0:00:44]} Na5 {[%emt 0:04:58]} 10. g4 {[%emt 0:13:48][%cal Bg2g4,Bg4g5][%mdl 32]} b5 {[%emt 0:07:40]} 11. g5 {[%emt 0:04:38]} Nd7 {[%emt 0:00:28]} 12. O-O-O {[%emt 0:21:23]} (12. a3 {seems wilder.} Nb6 13. O-O-O Nbc4 14. Ncxb5 axb5 15. Nxb5 Qc6 16. Ba4) 12... Nc5 {[%emt 0:16:31] B89: Sicilian: Velimirovic Attack.} 13. a3 {[%emt 0:28:34] [#]} Naxb3+ $146 {[%emt 0:10:39]} ({Predecessor:} 13... Rb8 14. Ba2 b4 15. axb4 Rxb4 16. Kb1 g6 17. f4 Qb7 18. Ka1 Rxb2 19. Rb1 Rxb1+ 20. Rxb1 {1-0 (35) Ivanov,O (2350)-Aseev,K (2591) St Petersburg 2002}) 14. Nxb3 {[%emt 0:00:28]} Nxb3+ {[%emt 0:00:08] Black is slightly better.} 15. cxb3 {[%emt 0:00:02]} Be7 {[%emt 0:00:49]} 16. Kb1 {[%emt 0:01:26]} O-O {[%emt 0:01:21]} 17. h4 {[%emt 0:00:42]} Qb7 {[%emt 0:01:37]} (17... b4 $5 18. axb4 Qb7 $11) 18. b4 $1 {[%emt 0:03:42]} Bd7 {[%emt 0:00:12][%cal Bc8d7,Bd7c6,Bc6e4][%mdl 32] Strongly threatening ...a5.} 19. Bd2 {[%emt 0:01:04]} Rac8 {[%emt 0:10:51]} 20. h5 {[%emt 0:01:01]} Rc4 {[%emt 0:08:13][%cal Oa6a5]} 21. g6 {[%emt 0:03:19]} Bf6 {[%emt 0:03:23]} (21... hxg6 22. hxg6 fxg6 23. Qg4 $16) 22. gxh7+ {[%emt 0:02:36]} Kxh7 {[%emt 0:07:12]} 23. Rdg1 {[%emt 0:07:31]} Bc6 {[%emt 0:06:13]} 24. f3 $1 {[%emt 0:00:11]} Qe7 {[%emt 0:00:32]} (24... Rc8 $11 {keeps the balance.}) 25. Rh3 {[%emt 0:02:59]} ({White should play} 25. b3 $16 Rxc3 26. Bxc3) 25... Be5 {[%emt 0:04:15]} 26. f4 {[%emt 0:01:22]} ({Better is} 26. Nd1 $16) 26... Bd4 $11 {[%emt 0:00:45]} 27. Be3 {[%emt 0:00:41]} (27. Rg4 $11 {remains equal.}) 27... Bxc3 $17 {[%emt 0:01:04]} 28. bxc3 {[%emt 0:00:07]} Bxe4+ {[%emt 0:00:02]} 29. Kb2 {[%emt 0:00:21]} Qf6 {[%emt 0:00:20]} 30. Qd2 {[%emt 0:00:26]} Rfc8 {[%emt 0:02:13][%cal Rc4c3]} 31. Bf2 {[%emt 0:01:23]} a5 {[%emt 0:01:01][%cal Ba6a5,Ba5b4,Bb4a3][%mdl 32] [#] Hoping for ...axb4.} 32. Bh4 {[%emt 0:00:40]} Qf5 $36 {[%emt 0:01:26][%mdl 2048] Black is really pushing. Black is more active.} 33. Rhg3 {[%emt 0:00:08]} axb4 {[%emt 0:00:41] The board is on fire.} (33... Qxh5 {gets mated.} 34. Rxg7+ Kh8 35. Bf6) 34. Rxg7+ $2 {[%emt 0:00:42][%mdl 8192] Loses the game.} (34. axb4 $17 Kh8 35. Rxg7) 34... Kh6 $19 {[%emt 0:01:39]} ({Not} 34... Kh8 35. axb4 Bd5 36. R7g5 Qxf4 37. Qxf4 Rxf4 38. R5g4 $17) 35. Qxd6 {[%emt 0:00:44]} Rxc3 {[%emt 0:01:07] Black mates.} 36. Qe7 {[%emt 0:00:33]} bxa3+ {[%emt 0:00:19]} 37. Ka1 {[%emt 0:00:19]} Rc1+ {[%emt 0:00:04]} 38. Rxc1 {[%emt 0:00:16]} Rxc1+ {[%emt 0:00:03]} 39. Ka2 {[%emt 0:00:04]} Bd5+ {[%emt 0:00:53]} 40. Kxa3 {[%emt 0:00:07]} Qd3+ {[%emt 0:00:21]} 41. Kb4 {[%emt 0:30:19]} Qc4+ {[%emt 0:30:13]} 42. Ka5 {[%emt 0:00:06]} Ra1+ {[%emt 0:00:09] Weighted Error Value: White=0.56/Black=0.13 (very precise)} 0-1

[Event "Austrian Championship 2022"]
[Site "Vienna"]
[Date "2022.08.18"]
[Round "8.9"]
[White "Balinov, Ilia"]
[Black "Lerch, Johannes"]
[Result "1-0"]
[ECO "A18"]
[WhiteElo "2419"]
[BlackElo "2222"]
[Annotator "TA"]
[PlyCount "77"]
[EventDate "2022.08.12"]
[EventType "swiss"]
[EventCountry "AUT"]
[SourceTitle "playchess.com"]
[Source "ChessBase"]
[SourceQuality "1"]
[TimeControl "40/5400+30:1800+30"]

{[%evp 13,77,19,36,-5,33,25,121,136,208,204,214,200,199,69,215,220,275,250,303,325,293,196,202,158,303,305,371,353,348,357,352,369,457,455,498,382,364,377,397,381,366,317,458,289,285,279,724,718,702,699,829,538,538,534,533,533,519,369,496,471,670,666,663,660,637,633]} 1. c4 {[%emt 0:00:03]} Nf6 {[%emt 0:00:05]} 2. Nc3 {[%emt 0:00:10]} e6 {[%emt 0:00:09]} 3. e4 {[%emt 0:00:14]} d5 {[%emt 0:00:05]} 4. e5 {[%emt 0:00:24]} d4 {[%emt 0:00:06]} 5. exf6 {[%emt 0:00:05]} dxc3 {[%emt 0:00:05]} 6. bxc3 {[%emt 0:00:30]} Qxf6 {[%emt 0:00:08]} 7. d4 {[%emt 0:00:09]} b6 {[%emt 0:00:08]} 8. Nh3 {[%emt 0:17:37] [#] A18: English Opening: Flohr-Mikenas System (1 c4 Nf6 2 Nc3 e6 3 e4).} h6 $146 {[%emt 0:05:47] Inhibits Bg5.} ({Predecessor:} 8... Bb7 9. Bg5 Qf5 10. f3 Nd7 11. Bd3 Qa5 12. Qc2 h6 13. Bd2 Bc6 14. O-O Ba4 15. Qc1 Bd6 {½-½ (63) Dubov,D (2691)-Oparin,G (2609) Satka 2018}) 9. Bf4 {[%emt 0:02:28]} Bd6 {[%emt 0:01:45]} (9... Nd7 $11) 10. Qf3 $16 {[%emt 0:01:36] White is better.} Bxf4 {[%emt 0:06:49]} (10... e5 $16) 11. Qxa8 $18 {[%emt 0:00:11]} c5 {[%emt 0:01:24]} 12. Nxf4 {[%emt 0:07:48]} (12. Qxa7 $6 cxd4 13. Nxf4 (13. Qxb6 Qe5+ 14. Kd1 dxc3 $14) (13. cxd4 Qxd4 14. Rd1 Qc3+ 15. Ke2 Nc6 $17) 13... Qxf4 $16) 12... Qxf4 {[%emt 0:00:07]} 13. g3 {[%emt 0:06:22]} (13. Qxa7 cxd4 14. Be2 dxc3) (13. Bd3 $18) 13... Qd6 {[%emt 0:03:08] [#] This move loses the game for Black.} ({Better is} 13... Qc7 $14) 14. Bg2 $1 {[%emt 0:02:17]} ({Don't play} 14. Qxa7 $6 cxd4 15. Rd1 O-O $16) 14... cxd4 {[%emt 0:07:17] [#]} 15. O-O $1 {[%emt 0:00:33] And now c5 would win.} ({Weaker is} 15. Qxa7 Qe5+ 16. Kf1 d3 $16) 15... dxc3 {[%emt 0:08:09]} 16. Qxa7 {[%emt 0:04:51] Strongly threatening Rfd1.} Nd7 {[%emt 0:00:58]} 17. Qa4 {[%emt 0:05:57]} O-O {[%emt 0:07:14]} 18. Rac1 {[%emt 0:01:20]} f5 {[%emt 0:02:52]} (18... Nc5 $16 {was necessary.} 19. Qb4 e5 20. Qxc3 Bg4) 19. Rfd1 {[%emt 0:03:33]} ({Don't do} 19. Rxc3 $6 Nc5 20. Qb4 e5 21. Bd5+ Be6 $16) 19... Qc7 {[%emt 0:00:35]} 20. Qc6 {[%emt 0:00:32]} Qxc6 {[%emt 0:02:33]} 21. Bxc6 {[%emt 0:00:05]} Ne5 {[%emt 0:00:06]} 22. Bg2 {[%emt 0:00:05]} Nxc4 {[%emt 0:03:43]} 23. Rxc3 {[%emt 0:00:39]} b5 {[%emt 0:01:23]} 24. Rb3 {[%emt 0:07:59]} Ba6 {[%emt 0:05:24]} 25. Rd7 {[%emt 0:00:10]} Rc8 {[%emt 0:00:54]} 26. h4 {[%emt 0:01:01][%cal Bh2h4,Bh4h5][%mdl 32] Black must now prevent Ra7.} Ne5 {[%emt 0:00:51]} 27. Rd1 {[%emt 0:03:40] Against Rc1. Hoping for Ra3.} Rc2 {[%emt 0:04:44]} (27... Nc4 $142 28. Rbd3 Kh7) 28. Ra3 {[%emt 0:01:02]} Bc8 {[%emt 0:00:52]} 29. Ra7 {[%emt 0:01:02] Rd8+ is the strong threat.} Ng4 $2 {[%emt 0:02:58]} (29... h5 30. Bf1 b4 31. Rd8+ Kh7) 30. h5 {[%emt 0:02:46]} Kh7 {[%emt 0:06:56]} 31. Rd8 {[%emt 0:20:04]} Ne5 {[%emt 0:08:15]} 32. f3 {[%emt 0:05:10]} Bd7 {[%emt 0:00:40]} 33. Rdxd7 {[%emt 0:00:50]} Nxd7 {[%emt 0:00:04]} 34. Rxd7 {[%emt 0:00:06]} Rxa2 {[%emt 0:00:06] KRB-KR} 35. Rb7 {[%emt 0:00:29]} Ra1+ {[%emt 0:01:53]} 36. Bf1 {[%emt 0:00:14] White is clearly winning.} e5 {[%emt 0:00:49]} (36... Kg8 $142 37. Kf2 Kf8 38. Bxb5 Rb1) 37. Rxb5 {[%emt 0:00:24]} e4 {[%emt 0:00:30]} 38. f4 {[%emt 0:02:03]} Ra3 {[%emt 0:01:04]} 39. Kf2 {[%emt 0:00:24] Weighted Error Value: White=0.37/Black=0.56} 1-0